bitfinex-derivatives/quotes_SOLF0:USTF0_20250709
["timestamp","ask_amount","ask_price","bid_price","bid_amount"]
[1752090384494,558.27277951,156.32,156.16,62.0]
[1752090384684,6.19277951,156.28,156.19,6.19277951]
[1752090384885,6.3991,156.24,156.16,62.0]
[1752090385090,6.19277951,156.28,156.17,6.19277951]
[1752090385490,6.19277951,156.28,156.19,6.4008]
[1752090385898,6.19277951,156.28,156.17,6.19277951]
[1752090386394,6.18960492,156.31,156.21,6.18960492]
[1752090386595,6.3975,156.28,156.23,6.3989]
[1752090386891,558.26960492,156.32,156.23,6.18960492]
[1752090387196,552.08,156.32,156.25,6.18754249]
[1752090387403,552.08,156.32,156.27,6.18754249]
[1752090387693,552.08,156.32,156.29,6.3967]
[1752090387888,552.08,156.32,156.27,6.18754249]
[1752090388090,2.3135,156.34,156.27,6.18754249]
[1752090388396,2.3135,156.34,156.29,6.18754249]
[1752090388695,6.3959,156.32,156.27,12.58504249]
[1752090388887,6.3959,156.32,156.19,2.148]
[1752090388888,2.3135,156.34,156.28,6.18754249]
[1752090389396,6.3952,156.33,156.29,6.3966]
[1752090389791,6.3952,156.33,156.28,6.18754249]
[1752090390091,6.3949,156.34,156.29,6.18754249]
[1752090390290,231.97984249,156.39,156.29,6.18754249]
[1752090390497,6.395,156.34,156.3,6.3962]
[1752090390698,231.97984249,156.39,156.3,6.3962]
[1752090391196,6.3951,156.33,156.3,6.3962]
[1752090391398,231.97984249,156.39,156.3,6.3962]
[1752090391800,6.395,156.34,156.31,6.3959]
[1752090392099,231.97984249,156.39,156.3,6.18754249]
[1752090392491,6.3946,156.35,156.31,6.3956]
[1752090392692,2.1523,156.39,156.32,6.18754249]
[1752090393196,2.1523,156.39,156.33,6.3949]
[1752090393703,2.1523,156.39,156.34,6.3946]
[1752090394200,6.3938,156.37,156.33,6.395]
[1752090394401,6.3938,156.37,156.32,6.18754249]
[1752090395098,6.3938,156.37,156.34,6.3947]
[1752090395300,552.42,156.4,156.36,6.18754249]
[1752090395600,552.42,156.4,156.34,6.18754249]
[1752090396099,6.3934,156.38,156.34,6.18754249]
[1752090396400,6.3934,156.38,156.35,6.394]
[1752090396595,552.42,156.4,156.35,6.394]
[1752090396596,6.3928,156.39,156.35,6.394]
[1752090397004,6.18754249,156.46,156.36,6.18754249]
[1752090397197,6.3919,156.41,156.36,6.18754249]
[1752090397398,223.14,156.45,156.36,6.18754249]
[1752090397703,6.3921,156.41,156.37,6.3933]
[1752090398199,6.3921,156.41,156.36,6.18754249]
[1752090398802,223.14,156.45,156.38,6.18754249]
[1752090398803,223.04,156.45,156.38,6.18754249]
[1752090399004,6.18754249,156.46,156.38,6.18754249]
[1752090399301,6.18754249,156.44,156.35,6.18754249]
[1752090399696,6.3926,156.4,156.37,6.3934]
[1752090399896,6.18754249,156.44,156.35,6.18754249]
[1752090400296,6.3931,156.38,156.35,6.18754249]
[1752090400492,6.18754249,156.44,156.33,6.18754249]
[1752090400801,6.3933,156.38,156.35,6.3942]
[1752090401002,6.3933,156.38,156.33,6.18754249]
[1752090401198,223.04,156.46,156.33,6.18754249]
[1752090401395,6.3933,156.38,156.33,6.18754249]
[1752090402104,6.3928,156.39,156.33,6.18754249]
[1752090402299,222.78,156.43,156.35,6.18754249]
[1752090403103,6.3924,156.4,156.37,6.3932]
[1752090403402,6.18754249,156.46,156.37,6.18754249]
[1752090403707,6.3917,156.42,156.39,6.3924]
[1752090404003,6.18754249,156.46,156.37,6.18754249]
[1752090404204,6.3917,156.42,156.39,6.3926]
[1752090405696,556.9461,156.48,156.34,4.3929]
[1752090405906,556.9461,156.48,156.4,6.18754249]
[1752090405907,779.5661,156.48,156.4,6.18754249]
[1752090406107,556.9461,156.48,156.4,6.18754249]
[1752090406308,6.3902,156.45,156.42,6.3911]
[1752090406604,556.9461,156.48,156.4,6.18754249]
[1752090406812,563.13364249,156.48,156.34,4.3929]
[1752090407108,563.13364249,156.48,156.37,6.18754249]
[1752090407496,6.3909,156.44,156.41,6.3917]
[1752090408309,6.391,156.43,156.38,6.18754249]
[1752090408499,563.13364249,156.48,156.38,6.18754249]
[1752090409108,6.18754249,156.46,156.36,6.18754249]
[1752090409308,6.18754249,156.44,156.36,6.18754249]
[1752090409514,6.18754249,156.42,156.34,2.2102]
[1752090409703,222.3,156.43,156.34,8.39774249]
[1752090409899,6.3915,156.42,156.36,6.18754249]
[1752090410105,222.24,156.46,156.38,6.18754249]
[1752090410301,222.24,156.46,156.34,2.2102]
[1752090410302,222.2,156.47,156.34,2.2102]
[1752090410507,222.2,156.47,156.4,6.3919]
[1752090411209,222.2,156.47,156.39,6.18754249]
[1752090411210,6.18754249,156.46,156.39,6.3926]
[1752090412201,6.3916,156.42,156.39,6.3926]
[1752090412402,6.18754249,156.46,156.38,6.3929]
[1752090412912,6.3919,156.41,156.38,6.3929]
[1752090413113,6.18754249,156.46,156.39,6.3926]
[1752090413313,6.18754249,156.46,156.36,6.18754249]
[1752090413613,222.2,156.47,156.38,6.18754249]
[1752090413906,6.39,156.46,156.4,6.18754249]
[1752090414112,554.6608,156.48,156.42,6.18754249]
[1752090414508,6.3894,156.47,156.42,6.18754249]
[1752090414713,554.6608,156.48,156.42,6.18754249]
[1752090415513,6.18754249,156.53,156.44,6.18754249]
[1752090415717,6.18754249,156.53,156.44,68.18754249]
[1752090415918,6.3888,156.49,156.46,6.3897]
[1752090416316,6.389,156.48,156.46,6.3897]
[1752090416916,8.39214249,156.54,156.47,6.3891]
[1752090417114,8.39214249,156.54,156.44,68.18754249]
[1752090417316,221.72,156.53,156.44,68.18754249]
[1752090417517,6.3881,156.51,156.48,6.3889]
[1752090418517,6.3882,156.5,156.47,6.3892]
[1752090419021,230.01214249,156.54,156.46,6.3897]
[1752090419217,230.01214249,156.54,156.44,68.18754249]
[1752090419414,230.01214249,156.54,156.44,6.18754249]
[1752090419415,6.18754249,156.52,156.44,6.18754249]
[1752090419920,2.2046,156.54,156.46,6.18754249]
[1752090420115,223.7246,156.54,156.46,6.18754249]
[1752090420318,6.3884,156.5,156.47,6.3892]
[1752090420518,223.7246,156.54,156.46,6.18754249]
[1752090420919,6.3883,156.5,156.47,6.3891]
[1752090421323,6.3876,156.52,156.48,6.18754249]
[1752090421525,2.2046,156.54,156.46,6.18754249]
[1752090421922,2.2046,156.54,156.43,4.4024]
[1752090422218,2.2046,156.54,156.43,8.44264249]
[1752090422425,6.3888,156.49,156.46,6.3896]
[1752090422824,6.18754249,156.53,156.43,70.44264249]
[1752090423124,6.18754249,156.53,156.45,6.18754249]
[1752090423424,2.2046,156.54,156.45,6.18754249]
[1752090423619,2.2046,156.54,156.47,6.18754249]
[1752090423820,2.2046,156.54,156.45,6.18754249]
[1752090424821,2.2046,156.54,156.48,6.3887]
[1752090425220,2.2046,156.54,156.47,6.3892]
[1752090425419,6.18754249,156.53,156.45,6.18754249]
[1752090425720,6.3892,156.48,156.43,70.44264249]
[1752090426121,221.08,156.52,156.43,70.44264249]
[1752090426325,6.3888,156.49,156.45,6.18754249]
[1752090426716,221.08,156.52,156.45,6.18754249]
[1752090427025,6.3892,156.48,156.45,6.39]
[1752090427225,221.08,156.52,156.45,6.39]
[1752090427525,220.96,156.52,156.45,6.39]
[1752090428024,6.18754249,156.51,156.41,6.18754249]
[1752090428421,6.39,156.46,156.43,6.3909]
[1752090429625,6.39,156.46,156.44,6.3906]
[1752090429829,6.3897,156.47,156.44,6.3906]
[1752090430816,6.18754249,156.51,156.44,6.3906]
[1752090431021,6.18754249,156.51,156.43,6.3908]
[1752090431420,6.3897,156.47,156.43,6.3908]
[1752090431823,6.3897,156.47,156.44,6.3905]
[1752090433724,6.3897,156.47,156.45,6.3902]
[1752090433925,220.96,156.52,156.43,6.18754249]
[1752090434119,227.14754249,156.52,156.43,6.18754249]
[1752090434323,6.18754249,156.52,156.43,6.18754249]
[1752090434521,226.68754249,156.52,156.38,2.1473]
[1752090434718,226.68754249,156.52,156.42,6.18754249]
[1752090434919,6.3894,156.47,156.44,6.3904]
[1752090436230,6.18754249,156.48,156.39,6.18754249]
[1752090436433,2.268,156.46,156.39,6.18754249]
[1752090436732,6.18754249,156.53,156.38,12.7855]
[1752090436933,2.268,156.52,156.43,6.18754249]
[1752090437133,6.3887,156.49,156.46,6.3895]
[1752090437321,2.268,156.52,156.46,6.3895]
[1752090437727,2.268,156.52,156.45,6.18754249]
[1752090438234,2.268,156.52,156.48,6.3887]
[1752090438235,6.3879,156.51,156.48,6.3887]
[1752090438434,6.3879,156.51,156.45,6.18754249]
[1752090438630,2.268,156.52,156.45,6.18754249]
[1752090439029,4.3626,156.55,156.47,6.18754249]
[1752090439235,4.3626,156.55,156.5,6.3879]
[1752090439425,4.3626,156.55,156.47,6.18754249]
[1752090439830,6.3872,156.53,156.5,6.3879]
[1752090440127,2.138,156.55,156.49,6.18754249]
[1752090440532,6.3866,156.54,156.49,6.18754249]
[1752090440736,2.138,156.55,156.49,6.18754249]
[1752090440937,2.2214,156.61,156.51,6.18754249]
[1752090441133,6.3851,156.58,156.53,6.18754249]
[1752090441329,2.138,156.6,156.53,6.18754249]
[1752090441729,231.99665001,156.62,156.55,6.18754249]
[1752090441932,551.9,156.64,156.55,6.18754249]
[1752090442132,6.383,156.63,156.59,6.3841]
[1752090442327,4.7114,156.65,156.59,6.18754249]
[1752090442726,11.0937,156.65,156.59,6.18754249]
[1752090442932,6.18754249,156.71,156.61,6.18754249]
[1752090443130,226.04754249,156.71,156.52,4.515]
[1752090443338,6.18754249,156.71,156.63,6.18754249]
[1752090443533,226.00754249,156.71,156.63,6.18754249]
[1752090443737,226.00754249,156.71,156.62,6.18754249]
[1752090444237,226.00754249,156.71,156.52,4.515]
[1752090444238,6.3797,156.71,156.64,6.18754249]
[1752090444438,554.1634,156.72,156.64,6.18754249]
[1752090444638,554.1634,156.72,156.6,6.18754249]
[1752090444935,554.1634,156.72,156.64,6.18754249]
[1752090445240,554.1634,156.72,156.62,62.0]
[1752090445432,560.35094249,156.72,156.62,62.0]
[1752090445836,6.3804,156.69,156.62,62.0]
[1752090446037,560.35094249,156.72,156.62,62.0]
[1752090446237,560.35094249,156.72,156.64,6.3823]
[1752090446433,219.58,156.71,156.62,62.0]
[1752090446733,6.18754249,156.7,156.62,62.0]
[1752090446941,219.58,156.71,156.62,62.0]
[1752090446942,6.18754249,156.68,156.62,62.0]
[1752090447239,8.42924249,156.7,156.6,6.18754249]
[1752090447435,8.42924249,156.7,156.62,6.18754249]
[1752090448636,6.3812,156.67,156.63,6.3826]
[1752090448832,8.42924249,156.7,156.62,6.18754249]
[1752090449233,8.42924249,156.7,156.6,6.18754249]
[1752090449437,6.18754249,156.68,156.6,6.18754249]
[1752090449740,6.18754249,156.68,156.61,6.3834]
[1752090449944,6.18754249,156.68,156.6,6.18754249]
[1752090450138,6.18754249,156.68,156.58,6.18754249]
[1752090450339,6.18754249,156.68,156.6,6.384]
[1752090450539,2.2417,156.7,156.6,6.18754249]
[1752090450740,6.18754249,156.69,156.58,6.18754249]
[1752090451042,6.18754249,156.65,156.55,6.18754249]
[1752090451244,2.3568,156.64,156.55,6.18754249]
[1752090451439,6.3834,156.62,156.58,6.3845]
[1752090451636,2.3568,156.64,156.55,6.18754249]
[1752090452037,6.3839,156.61,156.57,6.3852]
[1752090452741,6.3839,156.61,156.55,6.18754249]
[1752090452742,6.3834,156.62,156.58,6.3848]
[1752090453137,2.3568,156.64,156.58,6.3848]
[1752090453344,6.3839,156.61,156.57,6.3852]
[1752090453644,6.3839,156.61,156.52,553.7986]
[1752090453645,6.18754249,156.63,156.54,62.0]
[1752090453839,8.41794249,156.63,156.55,6.3858]
[1752090454033,6.18754249,156.61,156.55,6.3858]
[1752090454238,6.18754249,156.61,156.53,6.18754249]
[1752090454439,6.18754249,156.61,156.51,6.18754249]
[1752090454640,8.84753668,156.7,156.6,6.16387874]
[1752090454840,8.52107874,156.74,156.65,6.16387874]
[1752090455041,8.84753668,156.78,156.71,6.16387874]
[1752090455241,15.01141542,156.83,156.71,6.16387874]
[1752090455436,6.16387874,156.81,156.71,6.16387874]
[1752090455741,6.16387874,156.83,156.73,6.16387874]
[1752090456043,10.75147874,156.86,156.75,6.16387874]
[1752090456236,4.5876,156.86,156.77,6.16387874]
[1752090456438,15.01141542,156.93,156.83,6.16387874]
[1752090456741,8.36787874,156.93,156.84,62.0]
[1752090456940,2.204,156.93,156.84,62.0]
[1752090457239,2.204,156.93,156.79,2.2092]
[1752090457440,6.16387874,156.87,156.78,6.16387874]
[1752090458241,218.7,156.89,156.75,2.2092]
[1752090458547,6.16387874,156.86,156.76,6.16387874]
[1752090458845,10.46086871,156.88,156.76,10.46086871]
[1752090459046,17.9596238,156.88,156.76,10.46086871]
[1752090459246,10.46086871,156.91,156.79,10.46086871]
[1752090459445,6.3732,156.87,156.81,6.3755]
[1752090459646,10.46086871,156.91,156.79,10.46086871]
[1752090459848,17.95510747,156.9,156.78,10.45635238]
[1752090460048,10.45635238,156.9,156.8,6.3758]
[1752090460248,10.45635238,156.9,156.81,62.0]
[1752090460449,7.49875509,156.92,156.81,62.0]
[1752090460649,6.3742,156.85,156.81,62.0]
[1752090460848,17.95510747,156.91,156.81,62.0]
[1752090461049,228.85635238,156.92,156.81,68.3754]
[1752090461252,228.85635238,156.92,156.81,62.0]
[1752090461742,7.46998821,156.91,156.81,62.0]
[1752090461944,10.45635238,156.91,156.81,62.0]
[1752090462150,10.45635238,156.91,156.81,68.3754]
[1752090462747,6.3743,156.85,156.81,62.0]
[1752090462953,218.4,156.92,156.81,62.0]
[1752090463154,6.3719,156.9,156.86,6.3734]
[1752090463349,2.204,156.93,156.83,2.2445]
[1752090463743,6.3723,156.89,156.85,6.3736]
[1752090463949,2.204,156.93,156.83,2.2445]
[1752090464148,6.3719,156.9,156.83,2.2445]
[1752090464455,2.204,156.93,156.83,2.2445]
[1752090464653,10.45166719,156.91,156.81,62.0]
[1752090464854,10.45166719,156.91,156.81,68.3755]
[1752090465056,10.45166719,156.91,156.81,62.0]
[1752090465860,10.45166719,156.91,156.82,6.375]
[1752090466256,12.65566719,156.93,156.81,62.0]
[1752090466458,12.65566719,156.93,156.82,2.2037]
[1752090466860,2.204,156.93,156.83,10.45166719]
[1752090467256,2.204,156.93,156.85,6.3738]
[1752090468357,6.3724,156.89,156.85,6.3738]
[1752090468764,6.3724,156.89,156.86,6.3734]
[1752090469164,2.204,156.93,156.86,6.3734]
[1752090469364,2.204,156.93,156.83,10.45166719]
[1752090469567,6.3728,156.88,156.82,4.3988]
[1752090469762,10.45166719,156.92,156.82,4.3988]
[1752090470163,6.3731,156.87,156.82,4.3988]
[1752090470362,12.65566719,156.93,156.82,4.3988]
[1752090470666,6.3731,156.87,156.82,4.3988]
[1752090470861,12.65566719,156.93,156.82,4.3988]
[1752090471164,6.3728,156.88,156.82,4.3988]
[1752090471560,6.3728,156.88,156.84,6.3743]
[1752090471755,6.3732,156.87,156.82,4.3988]
[1752090472167,12.65566719,156.93,156.84,6.374]
[1752090472366,6.3728,156.88,156.84,6.374]
[1752090472560,6.3728,156.88,156.82,4.3988]
[1752090472961,6.3724,156.89,156.82,4.3988]
[1752090473458,2.204,156.93,156.82,4.3988]
[1752090473860,2.204,156.93,156.85,6.3736]
[1752090474057,2.204,156.93,156.82,4.3988]
[1752090474261,10.45166719,156.92,156.82,2.2037]
[1752090474469,10.45166719,156.92,156.84,6.3742]
[1752090474762,10.45166719,156.92,156.82,2.2037]
[1752090474960,6.373,156.88,156.84,6.3742]
[1752090475467,6.3731,156.87,156.84,6.3742]
[1752090475761,10.45166719,156.92,156.83,6.3745]
[1752090475967,10.45166719,156.92,156.82,2.2037]
[1752090476173,10.45166719,156.92,156.81,62.0]
[1752090476362,2.204,156.93,156.81,62.0]
[1752090476667,2.204,156.93,156.84,6.374]
[1752090477167,6.373,156.88,156.84,6.374]
[1752090477861,6.373,156.88,156.85,6.3737]
[1752090478370,2.204,156.93,156.85,6.3737]
[1752090478667,2.204,156.93,156.84,6.3741]
[1752090478869,6.14127137,156.91,156.84,6.3741]
[1752090479069,6.14127137,156.89,156.81,62.0]
[1752090479365,6.14127137,156.89,156.77,2.3131]
[1752090479563,6.14127137,156.89,156.78,6.14127137]
[1752090479764,6.14127137,156.89,156.77,2.3131]
[1752090479969,14.946,156.93,156.77,2.3131]
[1752090479970,6.14127137,156.85,156.77,2.3131]
[1752090480164,6.14127137,156.85,156.74,6.14127137]
[1752090480362,6.14127137,156.81,156.73,551.08]
[1752090480565,6.14127137,156.81,156.72,8.28217137]
[1752090480761,2.3668,156.84,156.72,8.28217137]
[1752090480762,2.3668,156.84,156.74,6.14127137]
[1752090480964,6.3749,156.83,156.77,6.14623126]
[1752090481370,8.7413,156.84,156.77,6.14623126]
[1752090481560,2.3668,156.84,156.72,14.899]
[1752090481763,2.3668,156.84,156.76,6.14623126]
[1752090481960,8.51303126,156.84,156.74,6.14623126]
[1752090482168,8.51303126,156.84,156.72,2.1409]
[1752090482367,8.51303126,156.84,156.74,6.14623126]
[1752090483571,6.14623126,156.83,156.72,8.28713126]
[1752090483866,2.3668,156.84,156.76,6.14623126]
[1752090484067,2.3668,156.84,156.78,6.14623126]
[1752090484275,6.3751,156.82,156.78,6.14623126]
[1752090484571,2.3668,156.84,156.72,2.1409]
[1752090484767,2.3668,156.84,156.75,6.14623126]
[1752090485266,6.3754,156.82,156.75,6.14623126]
[1752090485467,2.3668,156.84,156.77,6.14623126]
[1752090485867,2.3668,156.84,156.78,62.0]
[1752090487168,2.3668,156.84,156.81,6.3755]
[1752090487169,8.7414,156.84,156.81,6.3755]
[1752090487369,8.7414,156.84,156.78,62.0]
[1752090487370,2.3668,156.84,156.78,62.0]
[1752090487871,6.3747,156.83,156.8,6.3757]
[1752090489675,2.3668,156.84,156.79,6.14623126]
[1752090489877,2.3668,156.84,156.79,6.1437102]
[1752090490073,8.7413,156.84,156.82,6.3751]
[1752090490472,2.1439,156.87,156.79,6.1437102]
[1752090490673,9.72103322,156.87,156.83,6.3746]
[1752090490870,2.1439,156.87,156.79,6.1437102]
[1752090491176,2.1439,156.87,156.8,6.3755]
[1752090491366,2.1538,156.86,156.8,6.3755]
[1752090491571,2.1538,156.86,156.78,68.1437102]
[1752090491766,6.3753,156.82,156.79,6.3761]
[1752090492277,218.2938,156.86,156.78,68.1437102]
[1752090493272,6.3751,156.82,156.78,68.1437102]
[1752090493576,218.2938,156.86,156.78,68.1437102]
[1752090493974,6.375,156.83,156.8,6.3756]
[1752090495173,6.1437102,156.83,156.73,6.1437102]
[1752090495471,6.3774,156.77,156.74,6.3781]
[1752090495676,215.92,156.81,156.68,2.3263]
[1752090495973,6.3782,156.75,156.72,6.3789]
[1752090496180,9.94196774,156.8,156.71,6.1437102]
[1752090496385,2.3132,156.8,156.71,6.1437102]
[1752090496572,6.3778,156.76,156.73,6.3785]
[1752090496768,6.1437102,156.79,156.71,6.1437102]
[1752090496973,2.2839,156.78,156.71,6.1437102]
[1752090497173,2.2839,156.78,156.72,6.3792]
[1752090497480,2.3132,156.8,156.73,6.15025814]
[1752090497679,7.63984249,156.79,156.75,6.3777]
[1752090497879,2.3132,156.8,156.75,6.3777]
[1752090498283,6.377,156.78,156.75,6.3777]
[1752090498976,6.3765,156.79,156.76,6.3775]
[1752090499172,6.15025814,156.82,156.76,6.3775]
[1752090499381,7.61667345,156.81,156.74,62.0]
[1752090499577,6.3769,156.78,156.75,6.3777]
[1752090501279,6.3769,156.78,156.76,6.3775]
[1752090501680,6.15025814,156.82,156.75,6.3777]
[1752090501880,7.62844492,156.81,156.75,6.3777]
[1752090502079,7.62844492,156.8,156.75,6.3777]
[1752090502281,7.62844492,156.79,156.73,6.15025814]
[1752090502480,7.62844492,156.78,156.71,6.15025814]
[1752090502682,6.3772,156.77,156.71,6.15025814]
[1752090503082,6.15025814,156.8,156.71,6.15025814]
[1752090503379,7.62568409,156.79,156.69,6.15025814]
[1752090503573,6.3778,156.76,156.69,6.15025814]
[1752090504371,6.3772,156.77,156.71,6.15025814]
[1752090504577,6.15025814,156.8,156.71,6.15025814]
[1752090504880,6.3774,156.77,156.71,6.15025814]
[1752090505383,6.15025814,156.8,156.73,6.3785]
[1752090505581,6.3776,156.76,156.72,62.0]
[1752090505781,6.3776,156.76,156.73,6.3784]
[1752090506576,6.3776,156.76,156.74,6.3783]
[1752090507183,6.3773,156.77,156.74,6.3783]
[1752090507480,6.15025814,156.8,156.74,6.3783]
[1752090507679,7.61907721,156.79,156.74,6.3783]
[1752090507879,6.3777,156.76,156.74,6.3783]
[1752090509078,6.3773,156.77,156.74,6.3783]
[1752090509686,6.3776,156.76,156.73,6.3786]
[1752090509884,6.3776,156.76,156.71,62.0]
[1752090510087,6.15025814,156.82,156.72,6.15025814]
[1752090510285,7.61693535,156.81,156.75,6.3777]
[1752090510483,7.61693535,156.8,156.75,6.3777]
[1752090510676,13.99353535,156.79,156.72,6.15025814]
[1752090510884,6.3766,156.79,156.76,6.3773]
[1752090511586,218.0839,156.83,156.74,6.15025814]
[1752090511786,7.61690371,156.82,156.74,6.15025814]
[1752090511987,7.61690371,156.81,156.77,6.377]
[1752090512180,6.3761,156.8,156.74,6.15025814]
[1752090512475,218.0839,156.83,156.74,6.15025814]
[1752090512678,6.3755,156.81,156.74,6.15025814]
[1752090513080,6.3755,156.81,156.78,6.3765]
[1752090513482,218.0839,156.83,156.78,6.3765]
[1752090513986,6.3757,156.81,156.79,6.3763]
[1752090514193,6.3757,156.81,156.75,62.0]
[1752090514386,218.0839,156.83,156.75,62.0]
[1752090514682,6.15025814,156.9,156.8,6.15025814]
[1752090514884,2.2356,156.9,156.8,6.15025814]
[1752090515182,8.38585814,156.9,156.83,6.3744]
[1752090515581,223.04585814,156.9,156.83,6.3744]
[1752090515984,223.04585814,156.9,156.82,6.375]
[1752090516178,6.15025814,156.88,156.77,6.15025814]
[1752090516383,7.60715008,156.87,156.77,6.15025814]
[1752090516689,6.3743,156.84,156.75,68.15025814]
[1752090516887,7.60715008,156.83,156.75,68.15025814]
[1752090517082,2.3221,156.85,156.79,6.3761]
[1752090517283,2.2356,156.83,156.75,62.0]
[1752090517986,2.2356,156.83,156.77,6.377]
[1752090518187,7.62064674,156.82,156.77,6.377]
[1752090518390,2.2356,156.83,156.74,6.15025814]
[1752090518579,7.62064869,156.82,156.74,6.15025814]
[1752090518778,2.2356,156.83,156.74,6.15025814]
[1752090518982,7.62064723,156.82,156.79,6.3762]
[1752090519182,2.2356,156.83,156.76,6.15025814]
[1752090520884,2.2356,156.83,156.77,62.0]
[1752090521689,2.2356,156.83,156.8,6.3757]
[1752090522890,7.63063759,156.82,156.8,6.3757]
[1752090523084,2.2356,156.83,156.8,6.3757]
[1752090523289,7.63108575,156.82,156.8,6.3757]
[1752090523485,7.63108575,156.81,156.8,6.3757]
[1752090523887,7.63108575,156.81,156.75,6.14628469]
[1752090524087,2.2356,156.83,156.71,2.3382]
[1752090524282,7.63695692,156.82,156.75,6.14628469]
[1752090524482,14.01265692,156.81,156.77,6.3769]
[1752090524683,6.14628469,156.82,156.72,6.14628469]
[1752090524883,6.3767,156.79,156.75,6.3777]
[1752090525085,7.63776914,156.78,156.72,6.14628469]
[1752090525282,6.14628469,156.81,156.72,6.14628469]
[1752090525482,7.63809139,156.8,156.72,6.14628469]
[1752090525686,7.63809139,156.79,156.72,6.14628469]
[1752090525890,7.63809139,156.78,156.73,6.14878172]
[1752090526090,2.2356,156.83,156.73,6.14878172]
[1752090526389,6.3759,156.81,156.73,6.14878172]
[1752090526591,2.2356,156.83,156.71,2.3382]
[1752090526592,7.67899693,156.8,156.74,6.14878172]
[1752090526787,7.67899693,156.79,156.74,6.14878172]
[1752090526983,6.376,156.8,156.76,6.3773]
[1752090527186,7.67932356,156.79,156.74,6.14878172]
[1752090527392,2.2356,156.83,156.74,6.14878172]
[1752090527585,6.3758,156.81,156.77,6.3769]
[1752090527787,7.64636392,156.8,156.77,6.3769]
[1752090528090,6.3758,156.81,156.77,6.3769]
[1752090528287,7.64631563,156.8,156.76,6.14878172]
[1752090528494,2.2356,156.83,156.76,6.14878172]
[1752090528693,7.64566613,156.82,156.76,6.14878172]
[1752090528992,7.64566613,156.81,156.76,6.14878172]
[1752090529192,6.3751,156.82,156.76,6.14878172]
[1752090529387,7.64629846,156.81,156.78,6.3765]
[1752090529592,6.3751,156.82,156.78,6.3765]
[1752090529793,7.64629846,156.81,156.78,6.3765]
[1752090529993,6.3751,156.82,156.78,6.3765]
[1752090530287,14.02189554,156.81,156.78,6.3765]
[1752090530496,2.2356,156.83,156.78,6.3765]
[1752090530685,7.64632334,156.82,156.78,6.3765]
[1752090530996,7.64632334,156.81,156.76,6.14878172]
[1752090531189,556.92878172,156.88,156.78,6.14878172]
[1752090531389,6.3748,156.83,156.8,6.3759]
[1752090531694,2.3119,156.87,156.78,6.14878172]
[1752090531888,7.64555074,156.86,156.78,6.14878172]
[1752090532088,6.3747,156.83,156.79,6.3761]
[1752090532390,2.3119,156.87,156.78,6.14878172]
[1752090532594,7.67812404,156.86,156.8,6.14878172]
[1752090532791,7.67812404,156.85,156.8,6.14878172]
[1752090532992,2.3119,156.87,156.83,6.3744]
[1752090533192,7.67762832,156.86,156.83,6.3744]
[1752090533389,2.3119,156.87,156.82,6.14878172]
[1752090533590,7.66059242,156.86,156.8,6.14878172]
[1752090533890,2.3119,156.87,156.8,6.14878172]
[1752090533891,7.66081337,156.85,156.8,6.14878172]
[1752090534091,2.3119,156.87,156.8,6.14878172]
[1752090534292,7.66000501,156.86,156.8,6.14878172]
[1752090534492,7.66000501,156.86,156.72,62.0]
[1752090534493,550.78,156.88,156.82,6.14878172]
[1752090534786,7.65989236,156.87,156.82,6.14878172]
[1752090535095,7.65989236,156.86,156.84,6.14878172]
[1752090535291,2.1586,156.91,156.84,6.14878172]
[1752090535490,7.65745798,156.9,156.84,6.14878172]
[1752090535692,7.65745798,156.89,156.84,6.14878172]
[1752090535994,7.65745798,156.88,156.86,6.3734]
[1752090536196,2.1586,156.91,156.84,6.14878172]
[1752090536394,7.65381415,156.9,156.88,6.14878172]
[1752090536693,7.65381415,156.89,156.79,4.4699]
[1752090536895,7.65403345,156.88,156.79,4.4699]
[1752090537194,7.65403345,156.87,156.85,6.14878172]
[1752090537393,6.14878172,156.92,156.82,6.14878172]
[1752090537596,7.65163984,156.91,156.82,6.14878172]
[1752090537793,7.65163984,156.9,156.84,6.14878172]
[1752090537994,7.65163984,156.89,156.86,6.14878172]